fUST/lending_fUST_20250702
["ID","MTS","AMOUNT","RATE_DAILY","PERIOD"]
[368916468,1751393443231,-460.0,0.00017098,2]
[368916470,1751393443240,-460.0,0.00017098,2]
[368916472,1751393443250,-460.0,0.00017098,2]
[368916474,1751393443260,-460.0,0.00017098,2]
[368916476,1751393443270,-460.0,0.00017098,2]
[368916478,1751393443279,-460.0,0.00017098,2]
[368916480,1751393443289,-402.82503396,0.00017099,2]
[368916482,1751393443299,-460.0,0.00017099,2]
[368916484,1751393443309,-460.0,0.00017099,2]
[368916486,1751393443319,-460.0,0.00017099,2]
[368916488,1751393443329,-460.0,0.00017099,2]
[368916490,1751393443339,-379.45605945,0.00017099,2]
[368916492,1751393443348,-508.66445798,0.00017099,2]
[368916494,1751393443358,-460.0,0.00017099,2]
[368916496,1751393443367,-460.0,0.00017099,2]
[368916498,1751393443377,-460.0,0.00017099,2]
[368916500,1751393443387,-460.0,0.00017099,2]
[368916502,1751393443396,-460.0,0.00017369,2]
[368916504,1751393443406,-460.0,0.00017369,2]
[368916506,1751393443416,-460.0,0.00017369,2]
[368916508,1751393443427,-460.0,0.00017369,2]
[368916510,1751393443437,-460.0,0.00017369,2]
[368916512,1751393443447,-460.0,0.00017369,2]
[368916514,1751393443457,-460.0,0.00017369,2]
[368916516,1751393443467,-240.89208695,0.00017369,2]
[368916754,1751393446080,-460.0,0.00017095,2]
[368916755,1751393446090,-219.10791305,0.00017369,2]
[368916756,1751393446099,-460.0,0.00017369,2]
[368916757,1751393446108,-549.12,0.00017369,2]
[368916758,1751393446117,-460.0,0.00017369,2]
[368916759,1751393446129,-460.0,0.00017369,2]
[368916760,1751393446138,-460.0,0.00017369,2]
[368916761,1751393446258,-460.0,0.00017369,2]
[368916762,1751393446268,-460.0,0.00017369,2]
[368916763,1751393446277,-460.0,0.00017369,2]
[368916764,1751393446287,-460.0,0.00017369,2]
[368916765,1751393446296,-460.0,0.00017369,2]
[368916766,1751393446306,-460.0,0.00017369,2]
[368916767,1751393446316,-460.0,0.00017369,2]
[368916769,1751393446330,-460.0,0.00017369,2]
[368916770,1751393446339,-460.0,0.00017369,2]
[368916772,1751393446348,-460.0,0.00017369,2]
[368916774,1751393446358,-460.0,0.00017369,2]
[368916776,1751393446367,-460.0,0.00017369,2]
[368916778,1751393446377,-460.0,0.00017369,2]
[368916780,1751393446387,-460.0,0.00017369,2]
[368916782,1751393446396,-460.0,0.00017369,2]
[368916784,1751393446405,-460.0,0.00017369,2]
[368916786,1751393446415,-460.0,0.00017369,2]
[368916788,1751393446424,-460.0,0.00017369,2]
[368916790,1751393446433,-460.0,0.00017369,2]
[368916792,1751393446442,-606.54,0.00017369,2]
[368916794,1751393446451,-541.67615501,0.00017369,2]
[368916796,1751393446461,-460.0,0.00017369,2]
[368916798,1751393446470,-460.0,0.00017369,2]
[368916800,1751393446479,-460.0,0.00017369,2]
[368916802,1751393446488,-460.0,0.00017369,2]
[368916804,1751393446498,-300.71946016,0.00017369,2]
[368916806,1751393446508,-460.0,0.00017369,2]
[368916808,1751393446517,-460.0,0.0001737,2]
[368916810,1751393446526,-460.0,0.0001737,2]
[368916812,1751393446536,-460.0,0.0001737,2]
[368916814,1751393446548,-460.0,0.0001737,2]
[368916816,1751393446558,-460.0,0.0001737,2]
[368916818,1751393446570,-460.0,0.0001737,2]
[368916820,1751393446580,-460.0,0.0001737,2]
[368916822,1751393446590,-460.0,0.0001737,2]
[368916824,1751393446599,-460.0,0.0001737,2]
[368916826,1751393446609,-422.97,0.0001737,2]
[368916828,1751393446619,-460.0,0.00017371,2]
[368916830,1751393446629,-863.47,0.00017371,2]
[368916832,1751393446639,-460.0,0.00017371,2]
[368916834,1751393446649,-460.0,0.00017371,2]
[368916836,1751393446659,-460.0,0.00017371,2]
[368916838,1751393446668,-460.0,0.00017371,2]
[368916840,1751393446677,-373.02,0.00017372,2]
[368916842,1751393446687,-857.0,0.00017635,3]
[368916844,1751393446696,-428.49,0.00017637,3]
[368916846,1751393446706,-460.0,0.00017643,2]
[368916848,1751393446715,-460.0,0.00017643,2]
[368916850,1751393446725,-460.0,0.00017643,2]
[368916852,1751393446735,-460.0,0.00017643,2]
[368916854,1751393446743,-460.0,0.00017643,2]
[368916856,1751393446754,-460.0,0.00017643,2]
[368916858,1751393446763,-179.02938201,0.00017643,2]
[368916860,1751393446772,-460.0,0.00017643,2]
[368916862,1751393446781,-460.0,0.00017643,2]
[368916864,1751393446791,-460.0,0.00017643,2]
[368916866,1751393446800,-247.92,0.00017643,2]
[368916868,1751393446809,-460.0,0.00017643,2]
[368916870,1751393446819,-428.56,0.00017643,2]
[368916872,1751393446828,-460.0,0.00017643,2]
[368916874,1751393446837,-223.29,0.00017643,2]
[368916876,1751393446847,-222.68,0.00017643,2]
[368916878,1751393446857,-460.0,0.00017644,2]
[368916880,1751393446867,-539.42,0.00017644,2]
[368916882,1751393446877,-460.0,0.00017644,2]
[368916884,1751393446888,-405.37,0.00017644,2]
[368916886,1751393446898,-460.0,0.00017644,2]
[368916888,1751393446908,-290.15,0.00017644,2]
[368916890,1751393446918,-460.0,0.00017644,2]
[368916892,1751393446929,-460.0,0.00017645,2]
[368916894,1751393446939,-863.47,0.00017645,2]
[368916896,1751393446949,-565.7,0.00017645,2]
[368916898,1751393446958,-460.0,0.00017645,2]
[368916900,1751393446967,-460.0,0.00017645,2]
[368916902,1751393446977,-377.33,0.00017645,2]
[368916904,1751393446987,-460.0,0.00017917,2]
[368916906,1751393446996,-460.0,0.00017917,2]
[368916908,1751393447005,-460.0,0.00017917,2]
[368916910,1751393447019,-460.0,0.00017917,2]
[368916912,1751393447028,-514.57542033,0.00017917,2]
[368916914,1751393447038,-447.55,0.00017917,2]
[368916916,1751393447047,-460.0,0.00017917,2]
[368916918,1751393447056,-460.0,0.00017918,2]
[368916920,1751393447065,-159.59,0.00017918,2]
[368916922,1751393447074,-163.2509287,0.00017918,2]
[368916924,1751393447085,-195.93372151,0.00017919,2]
[368916926,1751393447094,-863.47,0.00017919,2]
[368916928,1751393447104,-460.0,0.00017919,2]
[368916930,1751393447113,-460.0,0.00017919,2]
[368916932,1751393447122,-1102.81489691,0.00018144,2]
[368916934,1751393447131,-460.0,0.00018191,2]
[368916936,1751393447140,-460.0,0.00018191,2]
[368916938,1751393447150,-460.0,0.00018191,2]
[368916940,1751393447159,-460.0,0.00018191,2]
[368916942,1751393447168,-460.0,0.00018191,2]
[368916944,1751393447177,-460.0,0.00018192,2]
[368916946,1751393447187,-863.47,0.00018193,2]
[368916948,1751393447196,-460.0,0.00018193,2]
[368916950,1751393447205,-460.0,0.00018193,2]
[368916952,1751393447214,-460.0,0.00018465,2]
[368916954,1751393447224,-415.4,0.00018465,2]
[368916956,1751393447233,-460.0,0.00018465,2]
[368916958,1751393447242,-421.34,0.00018465,2]
[368916960,1751393447251,-219.84,0.00018465,2]
[368916962,1751393447261,-460.0,0.00018466,2]
[368916964,1751393447271,-863.47,0.00018467,2]
[368916966,1751393447280,-460.0,0.00018467,2]
[368916968,1751393447289,-460.0,0.00018467,2]
[368916970,1751393447299,-866.81366439,0.000186,2]
[368916972,1751393447309,-866.81366432,0.000186,2]
[368916974,1751393447319,-866.81366432,0.000186,2]
[368916976,1751393447329,-866.81366432,0.00018728,2]
[368916978,1751393447338,-166.7610455,0.00018739,2]
[368916981,1751393447347,-304.6,0.00018739,2]
[368916983,1751393447357,-460.0,0.0001874,2]
[368916984,1751393447367,-863.47,0.00018741,2]
[368916987,1751393447377,-460.0,0.00018741,2]
[368916988,1751393447386,-460.0,0.00018741,2]
[368916990,1751393447395,-203.38940466,0.000189,2]
[368916992,1751393447404,-302.66710251,0.00019,2]
[368916994,1751393447413,-866.81366432,0.00019003,2]
[368916996,1751393447423,-856.98,0.00019007,3]
[368916998,1751393447432,-428.48,0.00019007,3]
[368917000,1751393447443,-529.37,0.00019014,2]
[368917002,1751393447452,-863.47,0.00019015,2]
[368917004,1751393447461,-460.0,0.00019015,2]
[368917006,1751393447470,-460.0,0.00019015,2]
[368917008,1751393447480,-206.870153,0.00019178,2]
[368917010,1751393447490,-866.81366432,0.00019279,2]
[368917012,1751393447499,-610.29032108,0.00019289,2]
[368917014,1751393447512,-253.17967892,0.00019289,2]
[368917016,1751393447522,-210.22,0.00019289,2]
[368917018,1751393447532,-460.0,0.00019289,2]
[368917020,1751393447542,-1102.81489691,0.00019294,2]
[368917022,1751393447551,-160.0,0.00019449,2]
[368917024,1751393447561,-215.01728679,0.00019449,2]
[368917026,1751393447571,-230.32585361,0.00019449,2]
[368917028,1751393447582,-837.20943635,0.00019449,2]
[368917030,1751393447592,-213.87551669,0.00019449,2]
[368917032,1751393447601,-160.0,0.00019449,2]
[368917034,1751393447610,-847.53272281,0.00019449,2]
[368917036,1751393447619,-309.82460792,0.00019555,2]
[368917038,1751393447631,-526.407,0.00019555,2]
[368917040,1751393447643,-30.5820564,0.00019555,2]
[368917042,1751393447651,-271.4179436,0.00019563,2]
[368917044,1751393447664,-592.0520564,0.00019563,2]
[368917046,1751393447673,-249.75339225,0.00019563,2]
[368917405,1751393548064,174.51151166,0.00017095,120]
[368917406,1751393593718,-179.95138146,0.00017094,2]
[368917408,1751393753870,7785.85449074,0.00016164,2]
[368917409,1751393753896,2214.14550926,0.00016164,2]
[368917410,1751393985902,280.266267,0.00016164,2]
[368917446,1751394349141,-933.44246693,0.00016993,2]
[368917447,1751394349165,-1798.85182376,0.00016995,2]
[368917448,1751394349189,-500.0,0.00017073,2]
[368917449,1751394349214,-1200.0,0.0001709,2]
[368917450,1751394349236,-300.0,0.00017091,2]
[368917451,1751394349257,-300.0,0.00017091,2]
[368917452,1751394349280,-300.0,0.00017091,2]
[368917453,1751394349302,-300.0,0.00017091,2]
[368917454,1751394349324,-300.0,0.00017091,2]
[368917455,1751394349346,-1200.0,0.00017092,2]
[368917456,1751394349368,-360.9344107,0.00017092,2]
[368917457,1751394367071,12505.58822374,0.00016163,2]
[368917458,1751394367095,12394.41177626,0.00016163,2]
[368917459,1751394375323,230.12777376,0.0001658,2]
[368917460,1751394432017,-231.88927025,0.0001709,2]
[368917461,1751394434084,-68.11072975,0.0001709,2]
[368917462,1751394434106,-832.34835038,0.00017091,2]
[368917463,1751394447078,-130.65164962,0.00017091,2]
[368917464,1751394447100,-500.0,0.00017091,2]
[368917465,1751394447120,-500.0,0.00017091,2]
[368917466,1751394447141,-294.70801176,0.00017091,2]
[368917467,1751394447162,-233.55546359,0.00017091,2]
[368917468,1751394447184,-473.01886443,0.00017091,2]
[368917469,1751394447203,-162.59933981,0.00017091,2]
[368917470,1751394447225,-99.0655893,0.00017092,2]
[368917471,1751394447246,-460.0,0.00017092,2]
[368917472,1751394447266,-460.0,0.00017092,2]
[368917473,1751394447288,-460.0,0.00017092,2]
[368917474,1751394447310,-460.0,0.00017092,2]
[368917475,1751394447331,-460.0,0.00017092,2]
[368917476,1751394447352,-460.0,0.00017092,2]
[368917477,1751394447374,-460.0,0.00017092,2]
[368917478,1751394447402,-500.0,0.00017092,2]
[368917479,1751394447423,-226.15783565,0.00017092,2]
[368917480,1751394447446,-241.81299523,0.00017092,2]
[368917481,1751394447468,-500.0,0.00017092,2]
[368917482,1751394447491,-500.0,0.00017092,2]
[368917483,1751394447513,-500.0,0.00017092,2]
[368917484,1751394447534,-500.0,0.00017092,2]
[368917485,1751394447554,-158.31048495,0.00017092,2]
[368917486,1751394447576,-13016.51255971,0.00017092,2]
[368917491,1751394548122,-1155.97281847,0.00016993,2]
[368917492,1751394555157,-29.46889904,0.00016993,2]
[368917493,1751394555179,-300.0,0.00017091,2]
[368917494,1751394555204,-460.0,0.00017091,2]
[368917495,1751394555227,-402.97062721,0.00017091,2]
[368917496,1751394566097,-57.02937279,0.00017091,2]
[368917497,1751394566119,-460.0,0.00017091,2]
[368917498,1751394566143,-384.57062721,0.00017091,2]
[368917499,1751394583729,165.080741,0.00013699,2]
[368917522,1751394632343,-1200.0,0.0001709,2]
[368917523,1751394632354,-75.42937279,0.00017091,2]
[368917524,1751394632365,-460.0,0.00017091,2]
[368917525,1751394632375,-460.0,0.00017091,2]
[368917526,1751394632384,-300.0,0.00017091,2]
[368917527,1751394632395,-300.0,0.00017091,2]
[368917528,1751394632405,-300.0,0.00017091,2]
[368917529,1751394632415,-460.0,0.00017091,2]
[368917530,1751394632426,-293.29517186,0.00017091,2]
[368917531,1751394632435,-381.01646073,0.00017092,2]
[368917532,1751394632447,-78.98353927,0.00017092,2]
[368917533,1751394632456,-460.0,0.00017092,2]
[368917534,1751394632467,-460.0,0.00017092,2]
[368917535,1751394632476,-460.0,0.00017092,2]
[368917536,1751394632486,-460.0,0.00017092,2]
[368917537,1751394632495,-460.0,0.00017092,2]
[368917538,1751394632505,-460.0,0.00017092,2]
[368917539,1751394632515,-460.0,0.00017092,2]
[368917540,1751394632524,-460.0,0.00017092,2]
[368917541,1751394632534,-460.0,0.00017092,2]
[368917542,1751394632544,-460.0,0.00017092,2]
[368917543,1751394632553,-460.0,0.00017092,2]
[368917544,1751394632563,-460.0,0.00017092,2]
[368917545,1751394632572,-460.0,0.00017092,2]
[368917546,1751394632582,-460.0,0.00017092,2]
[368917547,1751394632591,-460.0,0.00017092,2]
[368917548,1751394632600,-423.07592919,0.00017092,2]
[368917549,1751394632609,-24.28747669,0.00017092,2]
[368917551,1751394638223,-435.71252331,0.00017092,2]
[368917552,1751394638233,-460.0,0.00017092,2]
[368917553,1751394638245,-494.35,0.00017092,2]
[368917554,1751394638255,-500.0,0.00017092,2]
[368917555,1751394638264,-500.0,0.00017092,2]
[368917556,1751394638273,-500.0,0.00017092,2]
[368917557,1751394638283,-419.26909666,0.00017092,2]
[368917558,1751394638292,-469.53,0.00017092,2]
[368917559,1751394638302,-10298.20095154,0.00017092,2]
[368917560,1751394638314,-39701.79904846,0.00017092,2]
[368917561,1751394638323,-460.0,0.00017093,2]
[368917563,1751394638332,-460.0,0.00017093,2]
[368917564,1751394638343,-460.0,0.00017093,2]
[368917565,1751394638352,-460.0,0.00017093,2]
[368917566,1751394638362,-460.0,0.00017093,2]
[368917567,1751394638371,-460.0,0.00017093,2]
[368917568,1751394638380,-322.57550503,0.00017093,2]
[368917570,1751394638391,-460.0,0.00017093,2]
[368917571,1751394638400,-531.75625788,0.00017093,2]
[368917572,1751394638409,-460.0,0.00017093,2]
[368917573,1751394638419,-460.0,0.00017093,2]
[368917574,1751394638428,-557.32421916,0.00017093,2]
[368917575,1751394638437,-460.0,0.00017093,2]
[368917576,1751394638447,-460.0,0.00017093,2]
[368917577,1751394638457,-460.0,0.00017093,2]
[368917578,1751394638467,-460.0,0.00017093,2]
[368917579,1751394638476,-460.0,0.00017093,2]
[368917580,1751394638486,-460.0,0.00017093,2]
[368917581,1751394638495,-500.0,0.00017093,2]
[368917582,1751394638504,-500.0,0.00017093,2]
[368917583,1751394638514,-460.0,0.00017093,2]
[368917584,1751394638523,-460.0,0.00017093,2]
[368917585,1751394638533,-460.0,0.00017093,2]
[368917586,1751394638543,-460.0,0.00017093,2]
[368917587,1751394638552,-460.0,0.00017093,2]
[368917588,1751394638561,-460.0,0.00017093,2]
[368917589,1751394638570,-460.0,0.00017093,2]
[368917590,1751394638580,-460.0,0.00017093,2]
[368917591,1751394638589,-460.0,0.00017093,2]
[368917592,1751394638598,-460.0,0.00017093,2]
[368917593,1751394638607,-460.0,0.00017093,2]
[368917594,1751394638617,-460.0,0.00017093,2]
[368917595,1751394638627,-460.0,0.00017093,2]
[368917596,1751394638637,-460.0,0.00017093,2]
[368917597,1751394638648,-460.0,0.00017093,2]
[368917598,1751394638657,-460.0,0.00017093,2]
[368917599,1751394638668,-460.0,0.00017093,2]
[368917600,1751394638678,-460.0,0.00017093,2]
[368917601,1751394638688,-460.0,0.00017093,2]
[368917602,1751394638699,-460.0,0.00017093,2]
[368917603,1751394638709,-460.0,0.00017093,2]
[368917604,1751394638719,-460.0,0.00017093,2]
[368917605,1751394638728,-460.0,0.00017093,2]
[368917606,1751394638738,-460.0,0.00017093,2]
[368917607,1751394638747,-460.0,0.00017093,2]
[368917608,1751394638757,-460.0,0.00017093,2]
[368917609,1751394638766,-460.0,0.00017093,2]
[368917610,1751394638776,-449.67211433,0.00017093,2]
[368917613,1751394638789,-10.32788567,0.00017093,2]
[368917615,1751394638799,-460.0,0.00017093,2]
[368917616,1751394638809,-460.0,0.00017093,2]
[368917618,1751394638819,-460.0,0.00017093,2]
[368917619,1751394638829,-460.0,0.00017093,2]
[368917620,1751394638839,-460.0,0.00017093,2]
[368917621,1751394638849,-460.0,0.00017093,2]
[368917622,1751394638858,-460.0,0.00017093,2]
[368917623,1751394638867,-521.68,0.00017093,2]
[368917624,1751394638877,-460.0,0.00017093,2]
[368917625,1751394638887,-460.0,0.00017093,2]
[368917626,1751394638896,-460.0,0.00017093,2]
[368917627,1751394638905,-460.0,0.00017093,2]
[368917628,1751394638914,-460.0,0.00017093,2]
[368917629,1751394638925,-460.0,0.00017093,2]
[368917630,1751394638938,-460.0,0.00017093,2]
[368917631,1751394638952,-460.0,0.00017093,2]
[368917632,1751394638964,-167.42,0.00017093,2]
[368917633,1751394638976,-460.0,0.00017093,2]
[368917634,1751394638991,-460.0,0.00017093,2]
[368917635,1751394639003,-340.60858204,0.00017093,2]
[368917636,1751394639017,-119.39141796,0.00017093,2]
[368917637,1751394639027,-448.54019334,0.00017093,2]
[368917638,1751394639041,-11.45980666,0.00017093,2]
[368917639,1751394639052,-460.0,0.00017093,2]
[368917640,1751394639064,-460.0,0.00017093,2]
[368917641,1751394639075,-460.0,0.00017093,2]
[368917642,1751394639087,-150.35382554,0.00017093,2]
[368917643,1751394639111,-309.64617446,0.00017093,2]
[368917644,1751394639124,-460.0,0.00017093,2]
[368917645,1751394639136,-460.0,0.00017093,2]
[368917646,1751394639146,-150.48107155,0.00017093,2]
[368917647,1751394639157,-148.01023409,0.00017093,2]
[368917648,1751394639172,-311.98976591,0.00017093,2]
[368917649,1751394639184,-280.04861854,0.00017094,2]
[368917650,1751394639196,-225.88161805,0.00017094,2]
[368917651,1751394639210,-234.11838195,0.00017094,2]
[368917652,1751394639222,-460.0,0.00017094,2]
[368917653,1751394639233,-460.0,0.00017094,2]
[368917654,1751394639247,-354.58917643,0.00017094,2]
[368917655,1751394639261,-105.41082357,0.00017094,2]
[368917656,1751394639273,-460.0,0.00017094,2]
[368917657,1751394639285,-460.0,0.00017094,2]
[368917658,1751394639297,-153.56677366,0.00017094,2]
[368917659,1751394639308,-437.94983703,0.00017094,2]
[368917660,1751394639320,-460.0,0.00017094,2]
[368917661,1751394639333,-460.0,0.00017094,2]
[368917662,1751394639345,-460.0,0.00017094,2]
[368917663,1751394639356,-323.94465814,0.00017094,2]
[368917664,1751394639368,-531.57,0.00017094,2]
[368917665,1751394639380,-460.0,0.00017094,2]
[368917666,1751394639391,-460.0,0.00017094,2]
[368917667,1751394639402,-562.26,0.00017094,2]
[368917668,1751394639412,-599.85,0.00017094,2]
[368917669,1751394639422,-460.0,0.00017094,2]
[368917670,1751394639434,-460.0,0.00017094,2]
[368917671,1751394639444,-460.0,0.00017094,2]
[368917672,1751394639456,-460.0,0.00017094,2]
[368917673,1751394639468,-370.10034502,0.00017094,2]
[368917707,1751394640482,-460.0,0.00017091,2]
[368917709,1751394640495,-264.06627849,0.00017093,2]
[368917711,1751394640506,-89.89965498,0.00017094,2]
[368917713,1751394640517,-460.0,0.00017094,2]
[368917715,1751394640528,-460.0,0.00017094,2]
[368917719,1751394640540,-460.0,0.00017094,2]
[368917721,1751394640552,-460.0,0.00017094,2]
[368917724,1751394640564,-460.0,0.00017094,2]
[368917727,1751394640576,-460.0,0.00017094,2]
[368917729,1751394640588,-460.0,0.00017094,2]
[368917731,1751394640601,-460.0,0.00017094,2]
[368917734,1751394640612,-168.63754658,0.00017094,2]
[368917736,1751394640625,-291.36245342,0.00017094,2]
[368917738,1751394640635,-460.0,0.00017094,2]
[368917740,1751394640645,-168.63754658,0.00017094,2]
[368917743,1751394640657,-291.36245342,0.00017094,2]
[368917745,1751394640668,-460.0,0.00017094,2]
[368917747,1751394640680,-492.02718125,0.00017095,2]
[368917750,1751394640692,-460.0,0.00017095,2]
[368917752,1751394640705,-460.0,0.00017095,2]
[368917754,1751394640716,-460.0,0.00017095,2]
[368917756,1751394640727,-484.9,0.00017095,2]
[368917759,1751394640739,-460.0,0.00017095,2]
[368917761,1751394640749,-460.0,0.00017095,2]
[368917763,1751394640760,-460.0,0.00017095,2]
[368917765,1751394640770,-460.0,0.00017095,2]
[368917767,1751394640781,-460.0,0.00017095,2]
[368917769,1751394640792,-460.0,0.00017095,2]
[368917771,1751394640802,-460.0,0.00017095,2]
[368917774,1751394640814,-460.0,0.00017095,2]
[368917776,1751394640826,-460.0,0.00017095,2]
[368917778,1751394640836,-556.77,0.00017095,2]
[368917780,1751394640848,-472.56,0.00017095,2]
[368917782,1751394640859,-460.0,0.00017095,2]
[368917785,1751394640869,-460.0,0.00017095,2]
[368917787,1751394640880,-460.0,0.00017095,2]
[368917789,1751394640893,-460.0,0.00017095,2]
[368917791,1751394640904,-460.0,0.00017095,2]
[368917793,1751394640915,-480.39,0.00017095,2]
[368917795,1751394640926,-460.0,0.00017095,2]
[368917797,1751394640936,-296.51,0.00017365,2]
[368917799,1751394640950,-506.0,0.00017365,2]
[368917801,1751394640960,-460.0,0.00017365,2]
[368917804,1751394640970,-460.0,0.00017365,2]
[368917806,1751394640981,-460.0,0.00017366,2]
[368917808,1751394640994,-460.0,0.00017366,2]
[368917810,1751394641006,-387.21,0.00017366,2]
[368917812,1751394641017,-460.0,0.00017366,2]
[368917814,1751394641028,-460.0,0.00017366,2]
[368917816,1751394641038,-460.0,0.00017366,2]
[368917819,1751394641049,-460.0,0.00017366,2]
[368917821,1751394641059,-527.42,0.00017366,2]
[368917823,1751394641071,-460.0,0.00017367,2]
[368917825,1751394641082,-460.0,0.00017367,2]
[368917827,1751394641092,-460.0,0.00017367,2]
[368917829,1751394641103,-460.0,0.00017367,2]
[368917832,1751394641113,-460.0,0.00017367,2]
[368917834,1751394641123,-460.0,0.00017367,2]
[368917836,1751394641134,-460.0,0.00017367,2]
[368917838,1751394641144,-460.0,0.00017367,2]
[368917840,1751394641155,-460.0,0.00017367,2]
[368917842,1751394641165,-361.61,0.00017367,2]
[368917844,1751394641175,-460.0,0.00017367,2]
[368917846,1751394641186,-460.0,0.00017367,2]
[368917849,1751394641196,-460.0,0.00017367,2]
[368917851,1751394641208,-460.0,0.00017367,2]
[368917853,1751394641219,-460.0,0.00017367,2]
[368917855,1751394641230,-389.82,0.00017367,2]
[368917857,1751394641241,-460.0,0.00017367,2]
[368917859,1751394641252,-495.0,0.00017367,2]
[368917861,1751394641262,-460.0,0.00017367,2]
[368917864,1751394641274,-460.0,0.00017367,2]
[368917866,1751394641285,-460.0,0.00017367,2]
[368917868,1751394641295,-460.0,0.00017367,2]
[368917870,1751394641306,-460.0,0.00017367,2]
[368917872,1751394641317,-460.0,0.00017367,2]
[368917874,1751394641328,-460.0,0.00017367,2]
[368917876,1751394641338,-460.0,0.00017367,2]
[368917879,1751394641350,-460.0,0.00017367,2]
[368917881,1751394641361,-460.0,0.00017367,2]
[368917883,1751394641372,-460.0,0.00017367,2]
[368917900,1751394641382,-460.0,0.00017367,2]
[368917903,1751394641535,-460.0,0.00017367,2]
[368917905,1751394641545,-579.15,0.00017367,2]
[368917907,1751394641554,-460.0,0.00017368,2]
[368917909,1751394641564,-460.0,0.00017368,2]
[368917911,1751394641574,-460.0,0.00017368,2]
[368917913,1751394641583,-460.0,0.00017368,2]
[368917915,1751394641593,-562.26,0.00017368,2]
[368917917,1751394641602,-460.0,0.00017368,2]
[368917919,1751394641611,-460.0,0.00017368,2]
[368917921,1751394641620,-460.0,0.00017368,2]
[368917923,1751394641630,-460.0,0.00017368,2]
[368917925,1751394641640,-460.0,0.00017368,2]
[368917927,1751394641649,-460.0,0.00017368,2]
[368917929,1751394641658,-460.0,0.00017368,2]
[368917931,1751394641668,-460.0,0.00017368,2]
[368917933,1751394641677,-460.0,0.00017368,2]
[368917935,1751394641687,-460.0,0.00017368,2]
[368917937,1751394641697,-460.0,0.00017368,2]
[368917939,1751394641706,-460.0,0.00017368,2]
[368917941,1751394641715,-460.0,0.00017368,2]
[368917943,1751394641725,-460.0,0.00017369,2]
[368917945,1751394641734,-368.07,0.00017369,2]
[368917947,1751394641744,-353.49048164,0.00017639,2]
[368917949,1751394641754,-543.40396799,0.00017639,2]
[368917951,1751394641764,-460.0,0.0001764,2]
[368917953,1751394641774,-460.0,0.0001764,2]
[368917955,1751394641783,-460.0,0.0001764,2]
[368917957,1751394641793,-460.0,0.0001764,2]
[368917959,1751394641802,-460.0,0.0001764,2]
[368917961,1751394641812,-460.0,0.00017641,2]
[368917963,1751394641822,-460.0,0.00017641,2]
[368917965,1751394641832,-463.21,0.00017641,2]
[368917967,1751394641842,-460.0,0.00017641,2]
[368917969,1751394641852,-460.0,0.00017642,2]
[368917971,1751394641861,-562.26,0.00017642,2]
[368917972,1751394641871,-247.34919758,0.00017642,2]
[368917973,1751394641885,-265.19080242,0.00017642,2]
[368917974,1751394641894,-427.01,0.00017642,2]
[368917975,1751394641903,-460.0,0.00017642,2]